bitfinex/quotes_ETHUSD_20240810
["timestamp","ask_amount","ask_price","bid_price","bid_amount"]
[1723280263761,2.2795,2633.2,2633.1,0.05565945]
[1723280263966,2.2795,2633.2,2632.6,1.373519]
[1723280263967,4.17833,2633.2,2632.6,1.373519]
[1723280264165,4.17833,2633.2,2633.1,0.05565945]
[1723280264377,4.17833,2633.2,2632.6,3.272769]
[1723280264543,4.17833,2633.2,2633.1,0.05565945]
[1723280264739,4.17833,2633.2,2632.5,11.28856]
[1723280264943,4.17833,2633.2,2633.1,0.05565945]
[1723280265194,4.17833,2633.2,2632.6,1.364076]
[1723280265376,4.17833,2633.2,2633.1,0.05565945]
[1723280265550,4.17833,2633.2,2632.6,1.89925]
[1723280265745,4.17833,2633.2,2633.1,0.05565945]
[1723280265941,4.17833,2633.2,2632.5,9.38928]
[1723280266179,6.07721,2633.2,2632.5,9.38928]
[1723280266384,1.8989,2633.1,2632.5,11.28856]
[1723280266546,1.8989,2633.1,2632.5,9.38928]
[1723280267067,4.17833,2633.2,2632.6,1.89925]
[1723280267254,4.17833,2633.2,2632.6,3.073398]
[1723280268275,4.17833,2633.2,2632.7,0.055796]
[1723280269866,1.89891,2633.1,2632.7,0.055796]
[1723280270062,4.17833,2633.2,2632.7,0.055796]
[1723280270388,4.17833,2633.2,2632.8,0.05588515]
[1723280270691,4.17833,2633.2,2632.6,0.615076]
[1723280270854,4.17833,2633.2,2632.6,2.514326]
[1723280271451,4.17833,2633.2,2632.7,0.0559128]
[1723280274067,4.17833,2633.2,2632.7,1.9550928]
[1723280274470,2.2795,2633.2,2632.7,1.9550428]
[1723280277276,2.4746,2633.5,2632.9,1.899]
[1723280277480,5.4746,2633.5,2632.9,1.899]
[1723280277675,5.4746,2633.5,2633.0,0.05589474]
[1723280277904,5.4746,2633.5,2633.0,1.95485474]
[1723280278201,5.4746,2633.5,2633.1,0.05586061]
[1723280278564,5.4746,2633.5,2632.9,1.899]
[1723280278760,7.37324,2633.5,2633.2,0.05582648]
[1723280279070,7.37324,2633.5,2633.3,0.05579235]
[1723280279610,7.37324,2633.5,2633.4,0.05575823]
[1723280279812,7.81951168,2633.5,2633.4,0.05575823]
[1723280280107,7.81951168,2633.5,2632.9,1.899]
[1723280280266,7.37324,2633.5,2632.9,1.899]
[1723280280983,7.37324,2633.5,2633.0,0.05589474]
[1723280289193,5.4746,2633.5,2633.0,0.05589474]
[1723280289396,7.37321,2633.5,2633.0,0.05589474]
[1723280297042,1.8988,2633.3,2633.0,0.05589474]
[1723280297321,2.826001,2633.3,2632.7,1.89917]
[1723280297500,1.8988,2633.3,2633.1,0.05566594]
[1723280298027,1.8988,2633.3,2633.2,0.05563181]
[1723280298393,1.8988,2633.3,2632.7,1.89917]
[1723280298692,2.807662,2633.3,2632.8,0.05576835]
[1723280298893,2.807662,2633.3,2632.7,1.89917]
[1723280299292,2.807662,2633.3,2632.8,0.05583324]
[1723280299628,2.807662,2633.3,2632.7,1.89917]
[1723280299827,0.908862,2633.3,2632.9,0.0557991]
[1723280300033,0.908862,2633.3,2632.8,1.95494324]
[1723280300234,0.908862,2633.3,2633.0,0.05576496]
[1723280300537,0.908862,2633.3,2633.1,0.05573083]
[1723280300833,4.18982,2633.4,2632.8,1.89911]
[1723280301054,4.18982,2633.4,2633.2,0.0556967]
[1723280301220,4.18982,2633.4,2632.8,1.89911]
[1723280301394,4.18982,2633.4,2633.3,0.05566257]
[1723280301598,4.18982,2633.4,2632.8,1.89911]
[1723280301812,5.098658,2633.4,2633.3,0.05566257]
[1723280302007,5.098658,2633.4,2632.9,1.89902]
[1723280302210,2.2911,2633.4,2633.3,0.05566257]
[1723280302546,3.0,2633.6,2633.1,1.89886]
[1723280302695,1.89855,2633.6,2633.3,0.05566257]
[1723280302898,4.89855,2633.6,2633.1,1.89886]
[1723280303099,4.89855,2633.6,2633.0,2.4964]
[1723280303340,4.89855,2633.6,2633.2,0.0556967]
[1723280303341,5.97904212,2633.6,2633.2,0.0556967]
[1723280303500,7.87764212,2633.6,2633.1,0.05573083]
[1723280303706,5.97904212,2633.6,2633.1,0.05573083]
[1723280303919,0.88854134,2633.5,2632.9,1.89899]
[1723280304131,3.88854134,2633.5,2632.9,1.89899]
[1723280304608,3.88854134,2633.5,2633.0,0.05576496]
[1723280305310,2.3114,2633.4,2633.0,0.05576496]
[1723280305629,3.88854134,2633.5,2633.0,1.95468496]
[1723280305832,3.0,2633.5,2633.0,1.95468496]
[1723280306533,3.0,2633.5,2633.0,1.95473496]
[1723280310431,4.20995,2633.6,2633.1,1.89888]
[1723280310762,4.20995,2633.6,2633.1,4.39528]
[1723280310918,2.3114,2633.6,2633.2,0.05564477]
[1723280311256,2.79188012,2633.6,2633.2,0.05564477]
[1723280312460,4.20994,2633.6,2633.2,0.05564477]
[1723280314429,2.3114,2633.6,2633.2,0.05564477]
[1723280316770,2.49344123,2633.7,2633.2,0.05564477]
[1723280329097,1.89856,2633.6,2633.2,0.05564477]
[1723280329257,2.52760312,2633.6,2633.2,0.05564477]
[1723280329798,1.89862,2633.5,2633.2,0.05564477]
[1723280330600,1.89856,2633.6,2633.2,0.05564477]
[1723280330773,3.79715,2633.6,2633.2,0.05564477]
[1723280331310,1.89856,2633.6,2633.2,0.05564477]
[1723280332210,1.89861,2633.5,2633.2,0.05564477]
[1723280332367,1.89856,2633.6,2633.2,0.05564477]
[1723280332574,2.44791312,2633.6,2633.2,0.05564477]
[1723280333094,4.34651312,2633.6,2633.2,0.05564477]
[1723280334212,2.44791312,2633.6,2633.2,0.05564477]
[1723280334717,2.3671,2633.5,2633.2,0.05564477]
[1723280334881,3.7975,2633.3,2633.2,0.05564477]
[1723280335210,1.8989,2633.1,2632.8,2.4486]
[1723280335413,2.51521,2633.3,2632.8,2.4486]
[1723280335614,1.89875,2633.3,2632.8,2.4486]
[1723280335791,3.79757,2633.3,2632.8,2.4486]
[1723280338808,1.89885,2633.2,2632.8,2.4486]
[1723280341884,3.79773,2633.2,2632.8,2.4486]
[1723280343016,3.79773,2633.2,2632.9,0.05395164]
[1723280347832,1.8989,2633.1,2632.9,0.05395164]
[1723280353360,0.59503917,2633.2,2633.0,2.3557]
[1723280353559,0.59503917,2633.2,2633.1,3.7978]
[1723280353856,1.89832,2634.0,2633.1,3.7978]
[1723280353857,1.89832,2634.0,2633.4,4.25437]
[1723280354157,2.49303152,2634.2,2633.5,4.2543]
[1723280354357,2.49303152,2634.2,2633.5,4.92033587]
[1723280354935,2.49303152,2634.2,2633.6,1.89852]
[1723280355149,2.49303152,2634.2,2633.7,2.3557]
[1723280355322,2.49303152,2634.2,2633.7,2.89816558]
[1723280355864,1.89813,2634.2,2633.7,2.89816558]
[1723280356355,1.89837,2633.9,2633.7,0.05044099]
[1723280356743,1.8983,2634.0,2633.5,2.3557]
[1723280356943,1.8983,2634.0,2633.8,0.05011495]
[1723280357260,1.8983,2634.0,2633.9,0.05008084]
[1723280357466,1.89812,2634.2,2633.9,2.40578084]
[1723280357622,1.89812,2634.2,2633.9,2.3557]
[1723280357823,1.89812,2634.2,2634.0,0.05010511]
[1723280359327,2.49281161,2634.4,2634.0,0.05010511]
[1723280359561,3.04209277,2634.4,2634.0,0.05010511]
[1723280360363,2.49281161,2634.4,2634.0,0.05010511]
[1723280360662,4.89783,2634.6,2634.1,2.3557]
[1723280360824,1.89783,2634.6,2634.1,2.3557]
[1723280361167,1.89783,2634.6,2634.2,0.0500369]
[1723280361322,2.49252201,2634.7,2634.2,0.0500369]
[1723280363264,1.89782,2634.6,2634.2,0.0500369]
[1723280365459,3.79571,2634.6,2634.2,0.0500369]
[1723280365669,1.89782,2634.6,2634.2,0.0500369]
[1723280366750,3.7957,2634.6,2634.2,0.0500369]
[1723280366953,1.8979,2634.5,2634.2,0.0500369]
[1723280367158,1.89803,2634.3,2634.2,0.0500369]
[1723280367506,3.79606,2634.3,2634.2,0.0500369]
[1723280367785,3.4390482,2634.5,2633.6,2.2516]
[1723280367786,1.89823,2634.1,2633.6,2.2516]
[1723280368285,1.89825,2634.0,2633.6,2.2516]
[1723280368981,1.89833,2633.9,2633.6,2.2516]
[1723280369181,2.277986,2633.9,2633.2,4.15037]
[1723280369390,1.89833,2633.9,2633.2,4.15037]
[1723280370964,1.89839,2633.8,2633.2,4.15037]
[1723280372361,1.89827,2634.0,2633.4,1.89868]
[1723280372564,1.89827,2634.0,2633.3,2.313747]
[1723280373085,1.89827,2634.0,2633.4,0.04793394]
[1723280375394,1.89827,2634.0,2633.4,1.94661394]
[1723280375985,2.497,2633.8,2633.4,0.04793394]
[1723280376200,4.39544,2633.8,2633.4,0.04793394]
[1723280376361,4.39544,2633.8,2633.2,2.2516]
[1723280376563,4.39544,2633.8,2633.5,0.048276]
[1723280376762,5.09215206,2633.8,2633.2,2.2516]
[1723280376992,2.497,2633.8,2633.6,0.04824837]
[1723280377188,2.497,2633.8,2633.2,4.15042]
[1723280377376,4.3954,2633.8,2633.7,0.04821425]
[1723280377986,1.89838,2633.9,2633.3,1.89869]
[1723280378190,1.89838,2633.9,2633.7,0.04821425]
[1723280378389,1.89838,2633.9,2633.4,0.415029]
[1723280378592,1.89838,2633.9,2633.8,0.04818014]
[1723280378759,1.89838,2633.9,2633.3,1.89869]
[1723280378961,1.89838,2633.9,2633.8,0.04818014]
[1723280379164,1.89838,2633.9,2633.3,1.89869]
[1723280379364,1.89838,2633.9,2633.8,0.04818014]
[1723280379564,1.89838,2633.9,2633.3,1.89869]
[1723280380265,1.89838,2633.9,2633.4,0.04831661]
[1723280381878,1.89841,2633.8,2633.4,0.04831661]
[1723280382502,1.89838,2633.9,2633.4,0.04831661]
[1723280382912,1.89839,2633.8,2633.4,0.04831661]
[1723280383096,1.89838,2633.9,2633.4,0.04831661]
[1723280384619,6.29345,2634.1,2633.5,2.4882]
[1723280385004,6.29345,2634.1,2633.6,0.04768748]
[1723280385395,1.89826,2634.0,2633.6,0.04768748]
[1723280386828,1.89821,2634.1,2633.6,0.04768748]
[1723280391992,3.79645,2634.1,2633.6,0.04768748]
[1723280392206,1.89821,2634.1,2633.6,0.04768748]
[1723280393400,1.89833,2633.9,2633.6,0.04768748]
[1723280396616,1.89842,2633.8,2633.6,0.04768748]
[1723280397002,1.89842,2633.8,2633.7,0.047595]
[1723280397323,1.89842,2633.8,2633.3,2.4882]
[1723280397623,1.89842,2633.8,2633.3,3.116789]
[1723280397794,1.89842,2633.8,2633.4,0.04769736]
[1723280398993,1.89833,2633.9,2633.4,0.04769736]
[1723280398994,1.89849,2633.7,2633.4,0.04769736]
[1723280400991,3.79701,2633.7,2633.4,0.04769736]
[1723280401187,1.89861,2633.5,2633.4,0.04769736]
[1723280401927,0.726031,2634.1,2633.4,2.48929736]
[1723280401928,1.89836,2633.9,2633.4,2.48929736]
[1723280402224,1.8982,2634.1,2633.5,2.4416]
[1723280402423,1.89829,2634.0,2633.5,2.4416]
[1723280402791,1.89833,2633.9,2633.5,2.4416]
[1723280405020,1.8984,2633.8,2633.5,2.4416]
[1723280405594,1.89833,2633.9,2633.5,2.4416]
[1723280406205,1.89807,2634.3,2633.7,4.34006]
[1723280406534,3.79616,2634.3,2633.7,4.34006]
[1723280407034,3.0,2634.2,2633.7,4.34006]
[1723280407419,1.89811,2634.2,2633.7,4.34006]
[1723280407607,1.8982,2634.1,2633.7,2.4416]
[1723280408841,3.0,2634.2,2633.7,2.90050897]
[1723280409136,1.89807,2634.3,2633.7,4.79896897]
[1723280409333,3.79615,2634.3,2633.7,4.79896897]
[1723280409697,1.89807,2634.3,2633.8,2.3548]
[1723280409934,1.89807,2634.3,2633.8,2.85090487]
[1723280410251,4.39033201,2634.7,2634.0,2.3548]
[1723280410456,4.39033201,2634.7,2633.8,0.49610487]
[1723280410457,0.59476201,2634.7,2634.2,2.3548]
[1723280410597,1.8977,2634.8,2634.3,0.23548]
[1723280410999,1.89763,2634.9,2634.4,2.3548]
[1723280411502,1.89768,2634.8,2634.4,2.3548]
[1723280412141,1.89786,2634.6,2634.0,2.3548]
[1723280412340,1.89775,2634.7,2634.0,2.780107]
[1723280412558,2.3541,2635.2,2634.0,2.780107]
[1723280412759,2.3541,2635.8,2635.0,4.25232]
[1723280412968,1.89703,2635.7,2635.1,1.8974]
[1723280413472,1.89703,2635.7,2635.1,0.42522]
[1723280414263,1.89703,2635.7,2635.1,2.32266]
[1723280414415,1.89703,2635.7,2635.1,0.42522]
[1723280415041,1.8971,2635.6,2635.0,2.3548]
[1723280415269,1.89726,2635.4,2635.0,2.3548]
[1723280415432,1.89732,2635.3,2635.0,2.3548]
[1723280416524,1.89726,2635.4,2635.0,2.3548]
[1723280416720,1.89726,2635.4,2634.7,1.89774]
[1723280416957,1.89718,2635.5,2634.9,2.3548]
[1723280417263,2.49168495,2635.6,2634.9,4.867346]
[1723280417463,1.89712,2635.6,2634.9,4.867346]
[1723280417637,1.89712,2635.6,2635.0,0.04503318]
[1723280417960,1.89717,2635.5,2635.0,0.04503318]
[1723280418167,1.89725,2635.4,2634.9,2.969816]
[1723280418524,1.89725,2635.4,2635.0,0.0444565]
[1723280419267,1.89712,2635.6,2635.0,0.0444565]
[1723280419423,1.89718,2635.5,2635.0,0.0444565]
[1723280419847,2.276531,2635.6,2635.0,0.0444565]
[1723280420272,1.89724,2635.5,2635.0,0.0444565]
[1723280422186,1.89729,2635.4,2635.0,0.0444565]
[1723280422646,1.8974,2635.2,2635.0,0.0444565]
[1723280423083,1.89733,2635.3,2634.8,2.3897]
[1723280423267,1.89738,2635.2,2635.1,0.04440299]
[1723280423448,1.89738,2635.2,2634.8,2.3897]
[1723280423644,3.79476,2635.2,2635.1,0.04440299]
[1723280423880,3.79476,2635.2,2634.8,2.3897]
[1723280423881,1.89749,2635.1,2634.8,2.3897]
[1723280424182,2.276856,2635.2,2634.1,3.2780107]
[1723280424183,1.89768,2634.8,2634.5,2.3897]
[1723280424847,3.79542,2634.8,2634.3,2.3897]
[1723280425049,1.89768,2634.8,2634.3,2.3897]
[1723280428178,1.89755,2635.0,2634.3,2.3897]
[1723280428389,3.0,2635.1,2634.3,6.18566]
[1723280428390,1.89761,2634.9,2634.3,6.18566]
[1723280428814,1.89761,2634.9,2634.4,1.89795]
[1723280429490,1.8975,2635.1,2634.5,1.89788]
[1723280429704,2.6149326,2635.1,2634.5,1.89788]
[1723280430004,2.6149326,2635.1,2634.6,2.4754]
[1723280430776,4.5124526,2635.1,2634.6,2.4754]
[1723280430977,1.89754,2635.0,2634.6,2.4754]
[1723280431375,2.6149326,2635.1,2634.6,2.4754]
[1723280431581,4.5124426,2635.1,2634.6,2.4754]
[1723280431903,2.6149326,2635.1,2634.6,2.4754]
[1723280432882,0.7174326,2635.1,2634.6,4.37321]
[1723280433121,1.89746,2635.1,2634.6,2.4754]
[1723280435711,1.89746,2635.1,2634.7,0.04314376]
[1723280436281,3.379476,2635.2,2634.7,0.04314376]
[1723280436480,0.379476,2635.2,2634.7,1.94088376]
[1723280436713,1.89721,2635.5,2634.8,4.37302]
[1723280437013,1.89721,2635.5,2634.9,0.04327642]
[1723280437313,1.89728,2635.4,2634.9,0.04327642]
[1723280437515,1.89728,2635.4,2635.0,2.4754]
[1723280437717,1.89728,2635.4,2635.1,0.04320826]
[1723280437921,2.276729,2635.4,2635.1,0.04320826]
[1723280438414,3.79476,2635.2,2635.1,0.04320826]
[1723280438619,8.69214,2635.2,2635.1,0.04320826]
[1723280438791,3.79544,2634.8,2634.5,2.4754]
[1723280438996,0.379544,2634.7,2634.5,2.4754]
[1723280439319,1.89771,2634.8,2634.6,0.04337868]
[1723280439496,1.89771,2634.8,2634.5,2.4754]
[1723280439697,1.8978,2634.7,2634.6,0.04337868]
[1723280440095,1.89771,2634.8,2634.6,0.04337868]
[1723280440296,2.277237,2634.8,2634.6,0.04337868]
[1723280441515,1.89771,2634.8,2634.6,0.04337868]
[1723280442135,1.89761,2634.9,2634.6,0.04337868]
[1723280442294,1.89756,2635.0,2634.6,0.04337868]
[1723280443119,4.174019,2635.4,2634.7,4.33638]
[1723280443321,1.89717,2635.5,2635.0,2.4387]
[1723280443618,1.89713,2635.6,2635.1,0.0432277]
[1723280443830,3.79429,2635.6,2635.1,0.0432277]
[1723280443995,4.173719,2635.6,2635.1,0.0432277]
[1723280444198,2.276559,2635.6,2635.1,0.0432277]
[1723280444602,4.173709,2635.6,2635.1,0.0432277]
[1723280444800,3.79428,2635.6,2635.1,0.0432277]
[1723280445408,1.89717,2635.5,2635.1,0.0432277]
[1723280446097,1.89717,2635.5,2635.2,2.4387]
[1723280446519,1.89717,2635.5,2635.3,0.04293277]
[1723280446697,1.89717,2635.5,2635.2,2.4387]
[1723280447200,4.89709,2635.7,2635.3,0.04293277]
[1723280447432,1.8971,2635.6,2635.2,2.4387]
[1723280447620,1.8971,2635.6,2635.4,0.0422574]
[1723280447820,1.8971,2635.6,2635.2,2.4387]
[1723280448034,1.8971,2635.6,2635.5,0.04222333]
[1723280448205,1.89718,2635.5,2635.2,2.4387]
[1723280448410,2.4548308,2635.5,2634.9,2.2795]
[1723280448638,1.89718,2635.5,2634.9,2.2795]
[1723280450498,1.89725,2635.4,2634.9,2.2795]
[1723280450841,1.89718,2635.5,2635.0,0.04240666]
[1723280452024,3.79441,2635.5,2635.0,0.04240666]
[1723280452193,1.89718,2635.5,2635.0,0.04240666]
[1723280452399,1.89718,2635.5,2635.1,2.2795]
[1723280452600,1.89718,2635.5,2635.1,2.32187258]
[1723280453233,1.8971,2635.6,2635.1,2.32187258]
[1723280454043,3.0,2635.7,2635.3,4.17681]
[1723280454203,1.8969,2635.9,2635.4,2.2795]
[1723280454401,1.8969,2635.9,2635.4,2.32179626]
[1723280454615,2.49107817,2636.3,2635.7,2.2795]
[1723280454799,0.59444817,2636.3,2636.0,1.8968]
[1723280454999,1.89638,2636.6,2636.0,2.5116682]
[1723280455237,0.59434357,2636.8,2636.2,4.17615]
[1723280455638,0.59434357,2636.8,2636.3,1.93830775]
[1723280455948,0.59434357,2636.8,2636.3,2.01416391]
[1723280457761,0.59434357,2636.8,2636.3,0.11757391]
[1723280457933,1.89637,2636.7,2636.3,0.04171775]
[1723280458345,1.89645,2636.5,2636.3,0.04171775]
[1723280458643,1.89652,2636.4,2636.3,0.04171775]
[1723280459255,1.89652,2636.4,2636.3,0.04083087]
[1723280460034,1.89652,2636.4,2636.0,2.2795]
[1723280460235,1.89652,2636.4,2636.3,0.04083087]
[1723280460431,1.89652,2636.4,2636.0,2.2795]
[1723280460632,1.89652,2636.4,2636.3,0.04083087]
[1723280460869,1.89652,2636.4,2636.0,2.2795]
[1723280461154,1.89652,2636.4,2636.3,0.04083087]
[1723280461553,1.89652,2636.4,2636.0,2.2795]
[1723280461855,1.89643,2636.6,2636.1,0.0396266]
[1723280462363,1.89634,2636.7,2636.1,0.0396266]
[1723280462572,1.8965,2636.5,2636.1,0.0396266]
[1723280462726,1.89659,2636.4,2636.1,0.0396266]
[1723280462920,1.89662,2636.3,2636.1,0.0396266]
[1723280463249,3.79332,2636.2,2636.1,0.0396266]
[1723280463434,3.79332,2636.2,2635.3,19.56]
[1723280463435,1.89688,2635.9,2635.5,2.2795]
[1723280463760,4.35925,2636.4,2635.5,2.2795]
[1723280463761,1.89684,2636.0,2635.5,2.2795]
[1723280463962,1.89684,2636.0,2635.5,3.44618]
[1723280464123,1.89662,2636.3,2635.5,3.44618]
[1723280464565,1.89671,2636.2,2635.6,1.89708]
[1723280465185,1.89675,2636.1,2635.5,2.2795]
[1723280465352,1.89688,2635.9,2635.5,2.2795]
[1723280465542,1.89688,2635.9,2635.6,0.03848858]
[1723280465742,1.89688,2635.9,2635.3,9.8401]
[1723280465743,3.79382,2635.9,2635.3,9.8401]
[1723280465943,3.79382,2635.9,2635.3,12.244844]
[1723280466177,1.89697,2635.8,2635.3,12.244844]
[1723280466374,1.89705,2635.7,2635.4,0.03855672]
[1723280467046,1.89688,2635.9,2635.4,0.03855672]
[1723280467354,1.89677,2636.1,2635.6,2.3347]
[1723280467555,4.89677,2636.1,2635.6,2.3347]
[1723280467882,1.89677,2636.1,2635.7,0.03845452]
[1723280468843,4.89667,2636.2,2635.7,0.03845452]
[1723280469079,2.4968,2636.6,2635.7,0.65519497]
[1723280469080,4.89648,2636.5,2635.7,0.65519497]
[1723280469285,4.89648,2636.5,2635.8,2.3347]
[1723280469578,4.89648,2636.5,2635.8,2.37332726]
[1723280469795,1.89648,2636.5,2635.8,2.37332726]
[1723280470461,3.0,2636.6,2636.0,1.89679]
[1723280470659,1.89633,2636.7,2636.0,1.89679]
[1723280470984,2.36054864,2636.7,2636.1,0.03851863]
[1723280471169,3.79297,2636.5,2636.1,0.03851863]
[1723280471355,1.89645,2636.5,2635.9,1.89684]
[1723280471881,1.89645,2636.5,2636.0,0.03855268]
[1723280472071,5.36054864,2636.7,2636.0,1.93535268]
[1723280472274,3.0,2636.7,2636.1,2.3347]
[1723280472594,4.393,2636.9,2636.2,0.03848457]
[1723280472775,3.4393,2636.8,2636.2,0.03848457]
[1723280473169,1.89635,2636.7,2636.2,0.03848457]
[1723280474891,1.89619,2636.9,2636.4,2.3347]
[1723280475197,1.89605,2637.1,2636.5,1.93489707]
[1723280475786,1.89605,2637.1,2636.5,0.03844707]
[1723280476092,1.89638,2636.6,2636.5,0.03844707]
[1723280476292,2.086018,2636.6,2636.5,0.03844707]
[1723280476500,1.89638,2636.6,2636.5,0.03844707]
[1723280476659,1.89629,2636.8,2636.5,0.03844707]
[1723280477212,1.89632,2636.7,2636.5,0.03844707]
[1723280479507,3.0,2637.1,2636.5,0.03844707]
[1723280479809,4.40140985,2637.0,2636.5,0.03844707]
[1723280480673,1.89628,2636.8,2636.5,0.03844707]
[1723280481882,3.79258,2636.8,2636.5,0.03844707]
[1723280482190,1.89628,2636.8,2636.5,0.03844707]
[1723280482574,3.79258,2636.8,2636.5,0.03844707]
[1723280482805,1.89638,2636.6,2636.5,0.03844707]
[1723280483561,4.34276,2636.6,2636.5,0.03844707]
[1723280483937,1.89685,2636.0,2635.8,2.4811]
[1723280484257,1.89685,2636.0,2635.9,0.03651597]
[1723280484460,1.89685,2636.0,2635.8,2.4811]
[1723280484658,1.89671,2636.2,2635.8,2.4811]
[1723280484883,3.79343,2636.2,2635.9,0.03651597]
[1723280485089,1.89677,2636.1,2635.9,0.03651597]
[1723280486586,1.89681,2636.0,2635.9,0.03651597]
[1723280486894,1.89681,2636.0,2635.5,2.4811]
[1723280487093,1.89681,2636.0,2635.9,0.03679356]
[1723280487258,1.89689,2635.9,2635.5,2.4811]
[1723280487696,3.79383,2635.9,2635.6,0.03689575]
[1723280487896,1.89702,2635.7,2635.6,0.03689575]
[1723280488112,1.89702,2635.7,2635.2,11.84118]
[1723280488319,3.79383,2635.9,2635.6,0.03689575]
[1723280488471,1.89697,2635.8,2635.2,4.35118]
[1723280488672,3.79412,2635.7,2635.2,3.078658]
[1723280488867,1.89743,2635.2,2634.9,2.4538]
[1723280489074,1.89727,2635.4,2634.9,2.4538]
[1723280489512,4.02004,2635.6,2634.9,4.3514]
[1723280489717,1.89704,2635.7,2634.9,4.3514]
[1723280490009,3.0,2635.7,2635.2,2.4538]
[1723280490223,1.89693,2635.9,2635.3,0.48982399]
[1723280490224,4.89693,2635.9,2635.3,0.48982399]
[1723280490419,1.89695,2635.8,2635.3,0.05469999]
[1723280490707,4.89695,2635.8,2635.2,2.4538]
[1723280490875,1.8971,2635.6,2635.2,2.4538]
[1723280491481,3.0,2635.7,2635.2,4.35118]
[1723280491673,1.89695,2635.8,2635.2,4.42697577]
[1723280491992,2.576328,2635.8,2635.2,4.35118]
[1723280492184,3.0,2635.7,2635.2,2.4538]
[1723280492777,1.89684,2636.0,2635.2,4.35117]
[1723280492975,1.89684,2636.0,2635.3,1.89728]
[1723280493203,1.89684,2636.0,2635.5,2.4538]
[1723280493398,1.89688,2635.9,2635.5,2.4538]
[1723280493678,3.0,2635.9,2635.5,2.4538]
[1723280493879,2.4244588,2636.0,2635.5,2.4538]
[1723280494580,4.3213288,2636.0,2635.5,2.4538]
[1723280494775,3.0,2635.9,2635.5,2.4538]
[1723280494975,4.89674,2636.1,2635.5,4.35097]
[1723280495583,3.0,2636.1,2635.5,4.35097]
[1723280495826,1.8967,2636.2,2635.6,0.03689575]
[1723280496051,2.501774,2636.2,2635.6,0.03689575]
[1723280496326,3.0,2636.1,2635.6,0.03689575]
[1723280499985,3.0,2636.1,2635.7,2.4538]
[1723280500185,1.8967,2636.2,2635.7,2.4538]
[1723280500415,1.8967,2636.2,2635.8,0.03724082]
[1723280500937,3.0,2636.3,2635.8,0.03724082]
[1723280501289,1.89654,2636.4,2635.8,0.03724082]
[1723280501490,2.666944,2636.4,2635.8,0.03724082]
[1723280501723,3.0,2636.3,2635.8,0.03724082]
[1723280501921,3.0,2636.3,2635.9,2.2838]
[1723280502224,3.0,2636.5,2635.9,4.21787676]
[1723280502525,1.89626,2636.8,2636.1,1.89671]
[1723280502745,1.89626,2636.8,2636.2,2.2838]
[1723280503048,1.89626,2636.8,2636.2,4.29336988]
[1723280503734,1.89626,2636.8,2636.3,4.2562324]
[1723280503944,1.89612,2637.0,2636.4,1.89652]
[1723280504241,1.89612,2637.0,2636.5,0.03700246]
[1723280504542,3.79227,2637.0,2636.5,0.03700246]
[1723280504739,1.89612,2637.0,2636.5,0.03700246]
[1723280505145,1.89612,2637.0,2636.6,2.2838]
[1723280505643,3.0,2637.1,2636.7,0.03693437]
[1723280505812,0.5943985,2637.2,2636.8,1.89622]
[1723280506012,1.89578,2637.5,2636.9,2.3206663]
[1723280506314,0.620191,2637.4,2636.9,2.3206663]
[1723280506513,1.896,2637.2,2636.9,2.3206663]
[1723280506720,1.896,2637.2,2636.9,2.2838]
[1723280506946,1.89602,2637.1,2637.0,0.03683227]
[1723280507109,4.171242,2637.1,2637.0,0.03683227]
[1723280507444,4.171242,2637.1,2636.2,1.89663]
[1723280507445,1.89623,2636.8,2636.3,2.4525]
[1723280507806,1.89623,2636.8,2636.4,0.0370365]
[1723280508044,1.89614,2637.0,2636.4,0.0370365]
[1723280508259,1.89614,2637.0,2636.4,1.9335565]
[1723280508413,1.89621,2636.9,2636.4,0.0370365]
[1723280508611,1.89621,2636.9,2636.4,1.9335565]
[1723280509134,1.89621,2636.9,2636.4,0.0370365]
[1723280509309,2.3173122,2636.9,2636.4,0.0370365]
[1723280509803,1.89634,2636.7,2636.4,0.0370365]
[1723280510925,1.8965,2636.5,2636.1,2.4525]
[1723280511819,1.89633,2636.7,2636.1,4.34917]
[1723280512019,1.89633,2636.7,2636.1,4.973767]
[1723280512326,1.89633,2636.7,2636.1,3.077097]
[1723280513424,3.7927,2636.7,2636.1,3.077097]
[1723280513756,1.89629,2636.8,2636.1,2.4525]
[1723280513913,1.8962,2636.9,2636.1,2.4525]
[1723280514118,1.89632,2636.7,2636.1,4.34919]
[1723280514327,1.8962,2636.9,2636.2,2.4525]
[1723280514652,3.79242,2636.9,2636.2,2.4525]
[1723280515068,3.79242,2636.9,2636.2,4.34911]
[1723280515547,1.89626,2636.8,2636.2,4.34911]
[1723280515755,1.8962,2636.9,2636.2,6.24573]
[1723280516053,4.89609,2637.0,2636.3,2.4525]
[1723280516257,3.0,2637.0,2636.5,4.3489]
[1723280516414,3.0,2637.0,2636.6,0.0758459]
[1723280516757,1.89605,2637.1,2636.6,0.0758459]
[1723280517360,4.89597,2637.2,2636.6,1.9721759]
[1723280517545,4.89597,2637.2,2636.6,1.89633]
[1723280517960,7.61397,2637.2,2636.6,1.89633]
[1723280519027,1.89603,2637.1,2636.6,1.89633]
[1723280519652,5.718,2637.2,2636.6,2.520859]
[1723280519858,5.718,2637.2,2636.7,2.4525]
[1723280520646,5.718,2637.2,2636.7,2.52826405]
[1723280520976,2.718,2637.2,2636.8,0.07576138]
[1723280521181,4.61395,2637.2,2636.8,0.07576138]
[1723280521681,1.89581,2637.4,2636.9,2.4525]
[1723280521976,1.89581,2637.4,2637.0,0.07576157]
[1723280522157,4.89581,2637.4,2637.0,0.07576157]
[1723280522552,4.89581,2637.4,2637.1,0.03686539]
[1723280524564,4.89581,2637.4,2636.9,4.34865]
[1723280524770,4.89581,2637.4,2637.2,0.03682893]
[1723280524980,3.0,2637.4,2636.9,4.34861]
[1723280525295,0.1264092,2638.0,2637.7,1.89558]
[1723280525500,0.1264092,2638.0,2637.8,2.4433]